bitfinex/quotes_BTCUSD_20210101
["timestamp","ask_amount","ask_price","bid_price","bid_amount"]
[1609507240839,1.27845527,29347.0,29346.0,0.2488396]
[1609507241034,1.24498715,29347.0,29346.0,0.2488396]
[1609507241242,1.24498715,29347.0,29346.0,0.2388396]
[1609507241541,0.49498715,29347.0,29346.0,0.2388396]
[1609507241740,0.49498715,29347.0,29346.0,0.6152396]
[1609507241943,0.49498715,29347.0,29346.0,0.6052396]
[1609507242141,0.363236,29347.0,29346.0,0.6052396]
[1609507242401,0.6,29353.0,29346.0,0.6052396]
[1609507242402,0.13175115,29352.0,29346.0,0.6052396]
[1609507242698,0.363236,29351.0,29347.0,0.3764]
[1609507242897,0.13175115,29350.0,29347.0,0.3764]
[1609507243092,0.13175115,29353.0,29346.0,0.6052396]
[1609507243599,0.13175115,29352.0,29346.0,0.2288396]
[1609507244601,0.363236,29351.0,29346.0,0.6052396]
[1609507244801,0.563236,29351.0,29346.0,0.2288396]
[1609507245102,0.13175115,29350.0,29347.0,0.3764]
[1609507245297,0.13175115,29351.0,29347.0,0.3764]
[1609507245597,0.363236,29350.0,29347.0,0.3764]
[1609507245800,0.13175115,29353.0,29347.0,0.3764]
[1609507245999,0.363236,29352.0,29347.0,0.3764]
[1609507246600,0.13175115,29351.0,29347.0,0.3764]
[1609507246800,0.363236,29350.0,29347.0,0.3764]
[1609507247206,0.13175115,29352.0,29347.0,0.3764]
[1609507247432,0.363236,29351.0,29347.0,0.3764]
[1609507248031,0.363236,29351.0,29346.0,0.6052396]
[1609507248737,0.363236,29351.0,29347.0,0.3764]
[1609507248941,0.13175115,29350.0,29346.0,0.2288396]
[1609507249239,0.363236,29352.0,29346.0,0.6052396]
[1609507249437,0.13175115,29351.0,29346.0,0.6052396]
[1609507249737,0.353236,29350.0,29346.0,0.6052396]
[1609507250039,0.13175115,29352.0,29347.0,0.3764]
[1609507250342,0.13175115,29352.0,29346.0,0.6052396]
[1609507250343,0.363257,29351.0,29346.0,0.6052396]
[1609507250534,0.363257,29351.0,29347.0,0.3764]
[1609507250938,0.85175115,29353.0,29346.0,0.6052396]
[1609507251137,0.363257,29351.0,29347.0,0.3764]
[1609507251335,0.363257,29351.0,29346.0,0.6052396]
[1609507251838,0.13175115,29352.0,29346.0,0.6052396]
[1609507252137,0.363257,29351.0,29346.0,0.6052396]
[1609507252534,0.363257,29351.0,29346.0,0.2288396]
[1609507252839,0.563257,29351.0,29346.0,0.2288396]
[1609507253052,0.31175115,29350.0,29346.0,0.2288396]
[1609507253654,0.13175115,29353.0,29346.0,0.2288396]
[1609507253853,0.363257,29352.0,29346.0,0.2288396]
[1609507254053,0.13175115,29351.0,29346.0,0.2288396]
[1609507254353,0.363257,29351.0,29346.0,0.2288396]
[1609507254857,0.15,29350.0,29346.0,0.2288396]
[1609507255154,0.363257,29351.0,29346.0,0.2288396]
[1609507255754,0.13175115,29350.0,29346.0,0.6052396]
[1609507255958,0.363257,29352.0,29346.0,0.2288396]
[1609507256152,0.13175115,29351.0,29346.0,0.2288396]
[1609507256355,0.363257,29352.0,29346.0,0.6052396]
[1609507256559,0.31175115,29351.0,29347.0,0.3764]
[1609507256857,0.2,29353.0,29347.0,0.010102]
[1609507257154,0.49500815,29352.0,29346.0,0.2288396]
[1609507257432,0.13175115,29353.0,29347.0,0.3764]
[1609507257927,0.3642893,29354.0,29348.0,0.0101]
[1609507258231,0.13175115,29355.0,29348.0,0.3764]
[1609507258641,0.13175115,29354.0,29348.0,0.3161]
[1609507258842,0.33175115,29354.0,29348.0,0.3161]
[1609507259040,0.13175115,29354.0,29348.0,0.3161]
[1609507259441,0.13175115,29355.0,29348.0,0.3161]
[1609507259644,0.13175115,29355.0,29348.0,0.8266]
[1609507259843,0.13175115,29355.0,29349.0,0.26]
[1609507260346,0.13175115,29355.0,29350.0,0.3161]
[1609507260551,0.13175115,29356.0,29354.0,0.3161]
[1609507260759,0.18474229,29358.0,29355.0,0.010084]
[1609507260947,0.18474229,29358.0,29356.0,0.5911]
[1609507261255,0.18474229,29358.0,29357.0,4.526179]
[1609507261453,0.18474229,29358.0,29357.0,3.476179]
[1609507261645,0.18474229,29358.0,29357.0,4.141179]
[1609507262055,0.18474229,29358.0,29357.0,3.77973138]
[1609507263163,0.17974229,29358.0,29357.0,3.77973138]
[1609507264166,0.17974229,29358.0,29357.0,4.28993138]
[1609507264466,0.17974229,29358.0,29357.0,1.185279]
[1609507264964,0.17974229,29358.0,29357.0,0.843089]
[1609507265364,0.17974229,29358.0,29357.0,1.493089]
[1609507265973,0.17974229,29358.0,29357.0,0.843089]
[1609507266172,0.01287451,29358.0,29357.0,0.843089]
[1609507266375,4.51e-06,29358.0,29357.0,1.21033002]
[1609507266581,0.08263226,29366.0,29357.0,1.21033002]
[1609507266770,0.08263226,29366.0,29358.0,0.330076]
[1609507266979,0.12394839,29369.0,29358.0,0.330076]
[1609507266980,0.08263038,29368.0,29362.0,0.010066]
[1609507267179,0.07763038,29368.0,29362.0,0.010066]
[1609507267483,0.07763038,29368.0,29367.0,2.940053]
[1609507267676,0.07763038,29368.0,29367.0,3.380053]
[1609507267994,0.07763038,29368.0,29367.0,0.530053]
[1609507268290,0.07763038,29368.0,29367.0,0.090053]
[1609507268490,0.2193,29375.0,29367.0,0.090053]
[1609507268691,0.2193,29375.0,29371.0,0.5101]
[1609507268896,0.17845737,29374.0,29372.0,0.010038]
[1609507269088,0.2193,29375.0,29372.0,0.010038]
[1609507270197,0.2193,29375.0,29371.0,0.5101]
[1609507270493,0.363257,29378.0,29371.0,0.5101]
[1609507270690,0.87,29378.0,29371.0,0.5101]
[1609507270896,0.17832908,29377.0,29372.0,0.226436]
[1609507271198,0.67,29378.0,29374.0,0.010033]
[1609507271404,0.0004,29379.0,29375.0,0.08]
[1609507271598,0.0004,29379.0,29376.0,0.010028]
[1609507271997,0.0004,29379.0,29374.0,0.08]
[1609507272191,0.0004,29379.0,29375.0,0.010028]
[1609507272817,1.0,29378.0,29374.0,0.08]
[1609507273014,1.0,29378.0,29375.0,0.010029]
[1609507273212,0.363257,29378.0,29374.0,0.08]
[1609507273412,1.2754,29379.0,29375.0,0.010028]
[1609507273413,0.21,29377.0,29375.0,0.010028]
[1609507273610,0.0004,29379.0,29375.0,0.010028]
[1609507275024,0.0004,29379.0,29375.0,0.520028]
[1609507275231,0.2183,29380.0,29375.0,0.520028]
[1609507275533,0.8,29379.0,29370.0,0.52150647]
[1609507275920,0.8,29379.0,29371.0,0.145]
[1609507276322,0.8,29379.0,29370.0,0.52150647]
[1609507276526,0.8,29379.0,29375.0,0.51]
[1609507276724,0.2183,29380.0,29375.0,0.51]
[1609507277650,0.2183,29380.0,29373.0,0.51]
[1609507277852,0.20355388,29379.0,29373.0,0.51]
[1609507280951,0.335267,29378.0,29373.0,0.51]
[1609507284878,0.335267,29378.0,29374.0,0.20005187]
[1609507285073,0.335267,29378.0,29373.0,0.51]
[1609507285272,0.335267,29378.0,29374.0,0.145]
[1609507285473,0.335267,29378.0,29374.0,0.37177]
[1609507285675,0.335267,29378.0,29375.0,0.165]
[1609507286477,0.335267,29378.0,29375.0,0.36505187]
[1609507286684,0.98883877,29377.0,29370.0,0.52150647]
[1609507287002,0.52,29366.0,29359.0,0.644]
[1609507287183,0.52,29362.0,29359.0,0.644]
[1609507287402,0.52,29362.0,29350.0,0.6788]
[1609507287403,1.32,29360.0,29350.0,0.6788]
[1609507287600,0.52,29353.0,29349.0,0.4965]
[1609507287800,0.36527114,29352.0,29347.0,0.00047449]
[1609507288002,0.185,29351.0,29346.0,0.22931409]
[1609507288200,0.55346812,29350.0,29346.0,0.22931409]
[1609507288596,0.03346812,29349.0,29346.0,0.22931409]
[1609507289022,0.36527114,29349.0,29346.0,0.22931409]
[1609507289427,0.33180302,29349.0,29346.0,0.22931409]
[1609507289635,1.248242,29348.0,29346.0,0.22931409]
[1609507289831,1.65180302,29347.0,29346.0,0.22931409]
[1609507290130,2.32899314,29347.0,29346.0,0.22931409]
[1609507290329,2.53392791,29346.0,29340.0,0.0008]
[1609507290527,3.43073093,29346.0,29340.0,0.0008]
[1609507290733,2.94419905,29346.0,29340.0,0.0008]
[1609507291026,2.13419905,29346.0,29340.0,0.0008]
[1609507291231,2.59358274,29346.0,29340.0,0.0008]
[1609507291428,2.51358274,29346.0,29340.0,0.0008]
[1609507292026,1.8637399,29346.0,29340.0,0.0008]
[1609507292326,1.7837399,29346.0,29340.0,0.0008]
[1609507292555,2.1337399,29346.0,29340.0,0.0008]
[1609507293559,2.1337399,29346.0,29345.0,0.00122094]
[1609507293755,2.10027178,29346.0,29345.0,0.00122094]
[1609507295059,1.75027178,29346.0,29345.0,0.00122094]
[1609507295260,1.74668178,29346.0,29345.0,0.00122094]
[1609507295559,1.41487876,29346.0,29345.0,0.00122094]
[1609507298477,2.41487876,29346.0,29345.0,0.00122094]
[1609507298677,2.80487876,29346.0,29345.0,0.00122094]
[1609507298879,2.51033791,29346.0,29345.0,0.00122094]
[1609507300981,2.54380603,29346.0,29345.0,0.00122094]
[1609507301381,2.87560905,29346.0,29345.0,0.00122094]
[1609507302181,2.54380603,29346.0,29345.0,0.00122094]
[1609507303022,2.87560905,29346.0,29345.0,0.00122094]
[1609507303222,2.95560905,29346.0,29345.0,0.00122094]
[1609507305036,2.87560905,29346.0,29345.0,0.00122094]
[1609507305736,2.95560905,29346.0,29345.0,0.00122094]
[1609507307140,1.13180302,29345.0,29340.0,0.0008]
[1609507307338,3.24504502,29345.0,29340.0,0.0008]
[1609507307565,3.27851314,29345.0,29340.0,0.0008]
[1609507307764,2.67851314,29345.0,29340.0,0.0008]
[1609507308167,2.75851314,29345.0,29340.0,0.0008]
[1609507308767,2.55851314,29345.0,29340.0,0.0008]
[1609507309468,1.55851314,29345.0,29340.0,0.0008]
[1609507309669,0.72851314,29345.0,29340.0,0.0008]
[1609507309972,0.69504502,29345.0,29340.0,0.0008]
[1609507310466,1.72851314,29345.0,29340.0,0.0008]
[1609507310669,2.13504502,29345.0,29344.0,0.00121735]
[1609507311972,2.16851314,29345.0,29344.0,0.00121735]
[1609507312772,2.45893901,29345.0,29344.0,0.00121735]
[1609507312971,2.16851314,29345.0,29344.0,0.00121735]
[1609507314007,2.13504502,29345.0,29344.0,0.00121735]
[1609507314203,2.42551268,29345.0,29344.0,0.00121735]
[1609507316108,2.4589808,29345.0,29344.0,0.00121735]
[1609507316708,3.18352251,29345.0,29344.0,0.00121735]
[1609507319414,3.15005439,29345.0,29344.0,0.00121735]
[1609507319918,3.18352251,29345.0,29344.0,0.00121735]
[1609507320615,3.68060406,29345.0,29344.0,0.00121735]
[1609507322419,0.3642893,29343.0,29340.0,0.0008]
[1609507322645,1.3642893,29342.0,29340.0,0.0008]
[1609507322843,0.69504502,29341.0,29340.0,0.0008]
[1609507323649,0.98445647,29341.0,29340.0,0.0008]
[1609507323945,2.15445647,29341.0,29337.0,0.0004]
[1609507324153,0.33180302,29339.0,29334.0,0.2114088]
[1609507324647,0.6210824,29338.0,29334.0,0.2114088]
[1609507324845,0.33180302,29337.0,29334.0,0.2114088]
[1609507325047,0.28936373,29337.0,29334.0,0.2114088]
[1609507325246,0.28940006,29336.0,29334.0,0.2114088]
[1609507325645,0.28940006,29336.0,29334.0,0.21162279]
[1609507325850,0.33180302,29340.0,29334.0,0.21162279]
[1609507325851,0.28942865,29339.0,29334.0,0.21162279]
[1609507326047,0.2,29338.0,29334.0,0.21162279]
[1609507326247,0.36914,29338.0,29334.0,0.21162279]
[1609507326848,0.28939681,29337.0,29334.0,0.21162279]
[1609507328969,0.28939681,29337.0,29334.0,0.20821806]
[1609507329170,0.28937936,29339.0,29334.0,0.20821806]
[1609507329570,0.2893438,29336.0,29334.0,0.21902346]
[1609507329770,0.33180302,29340.0,29334.0,0.21902346]
[1609507329771,0.28936074,29339.0,29335.0,1.285]
[1609507329969,0.28936074,29339.0,29336.0,0.00021399]
[1609507330174,0.28936074,29339.0,29337.0,0.195]
[1609507330473,0.28935733,29340.0,29337.0,0.195]
[1609507330671,0.28935733,29340.0,29338.0,0.2]
[1609507330872,0.78739507,29342.0,29336.0,0.00021399]
[1609507331274,0.78718801,29343.0,29336.0,0.00021399]
[1609507331472,1.0,29341.0,29336.0,0.00021399]
[1609507331976,0.2904458,29340.0,29338.0,0.5106]
[1609507332625,0.2904458,29340.0,29338.0,0.51081399]
[1609507332825,0.2904356,29341.0,29338.0,0.51081399]
[1609507333223,0.2904383,29343.0,29338.0,0.51081399]
[1609507335127,0.2904383,29343.0,29339.0,0.01080376]
[1609507335327,0.2804383,29343.0,29339.0,0.01101775]
[1609507335527,0.2804383,29343.0,29341.0,0.6808]
[1609507335732,0.29020564,29342.0,29341.0,0.6808]
[1609507336535,0.29022651,29343.0,29341.0,0.6808]
[1609507336736,0.29022744,29342.0,29341.0,0.6808]
[1609507337329,0.29022744,29342.0,29341.0,0.88601399]
[1609507337558,0.29013973,29343.0,29341.0,0.88601399]
[1609507337959,0.29014442,29342.0,29341.0,0.88601399]
[1609507338961,0.29015066,29343.0,29341.0,0.88601399]
[1609507339165,0.29015066,29343.0,29342.0,3.735]
[1609507339363,0.29015066,29343.0,29342.0,3.73521399]
[1609507339660,0.29015066,29343.0,29342.0,0.23521399]
[1609507341462,0.29015066,29343.0,29342.0,1.28521399]
[1609507341664,0.29015066,29343.0,29342.0,0.23521399]
[1609507341867,0.29015066,29343.0,29342.0,0.74571399]
[1609507342365,0.29015066,29343.0,29342.0,2.54571399]
[1609507343479,0.29015066,29343.0,29342.0,3.74571399]
[1609507344085,0.26,29344.0,29342.0,2.54571399]
[1609507344386,0.26,29344.0,29343.0,4.42021399]
[1609507344886,0.55000507,29344.0,29343.0,4.42021399]
[1609507345391,0.55000507,29344.0,29343.0,0.62021399]
[1609507345392,0.26,29344.0,29343.0,0.62021399]
[1609507345590,0.26,29344.0,29343.0,0.00021399]
[1609507345789,0.5555032,29344.0,29343.0,1.66080285]
[1609507345987,0.5555032,29344.0,29343.0,0.01080285]
[1609507346486,0.5555032,29344.0,29343.0,0.71101684]
[1609507347290,0.5555032,29344.0,29343.0,0.01101684]
[1609507349444,0.26549446,29344.0,29343.0,0.01101684]
[1609507349950,0.55546661,29344.0,29343.0,0.19101684]
[1609507350250,0.26549446,29344.0,29343.0,1.69101684]
[1609507350747,0.55547341,29344.0,29343.0,1.69101684]
[1609507351853,0.55547341,29344.0,29343.0,1.51101684]
[1609507352052,0.14401341,29344.0,29343.0,1.72827684]
[1609507352353,0.12406062,29344.0,29343.0,5.32827684]
[1609507352752,0.40975749,29345.0,29343.0,5.32827684]
[1609507353350,0.28570382,29345.0,29344.0,5.945]
[1609507353548,0.28570382,29345.0,29344.0,5.94521399]
[1609507355301,0.40973696,29345.0,29344.0,0.84521399]
[1609507355502,0.40973696,29345.0,29344.0,0.00021399]
[1609507355701,0.40973696,29345.0,29343.0,0.01101684]
[1609507356695,0.40473696,29345.0,29343.0,0.01101684]
[1609507356905,0.28832459,29344.0,29343.0,0.01101684]
[1609507357296,0.28832459,29344.0,29343.0,1.81101684]
[1609507357700,0.28832459,29344.0,29343.0,2.26101684]
[1609507357904,0.28823313,29345.0,29343.0,2.26101684]
[1609507358101,0.28823313,29345.0,29344.0,3.35021399]
[1609507358311,0.28823313,29345.0,29344.0,3.73521399]
[1609507358515,0.28823313,29345.0,29344.0,0.38521399]
[1609507358711,0.28823313,29345.0,29344.0,0.00021399]
[1609507358911,0.28823313,29345.0,29343.0,0.01101684]
[1609507359214,0.412229,29345.0,29343.0,0.01101684]
[1609507359908,0.28823313,29345.0,29343.0,0.01101684]
[1609507361612,0.41224324,29345.0,29343.0,0.01101684]
[1609507361812,0.41224324,29345.0,29344.0,2.83021399]
[1609507362015,0.41224324,29345.0,29344.0,0.18021399]
[1609507362211,0.41224324,29345.0,29344.0,1.85021399]
[1609507363066,0.41224324,29345.0,29343.0,0.01101684]
[1609507363266,0.28823313,29345.0,29343.0,0.01101684]
[1609507363767,0.12405023,29344.0,29343.0,0.01101684]
[1609507364169,0.12405023,29344.0,29343.0,1.71101684]
[1609507366071,0.12405023,29344.0,29343.0,3.31101684]
[1609507366270,0.12405023,29344.0,29343.0,3.59601684]
[1609507366769,0.12405023,29344.0,29343.0,1.99601684]
[1609507367996,0.12405023,29344.0,29343.0,2.09601684]
[1609507368698,0.11899619,29344.0,29343.0,4.04601684]
[1609507369006,0.2883501,29344.0,29343.0,2.09601684]
[1609507369199,0.28835028,29345.0,29343.0,2.09601684]
[1609507369402,0.28835028,29345.0,29344.0,2.80021399]
[1609507369598,0.28835028,29345.0,29344.0,3.61021399]
[1609507369805,0.38943768,29345.0,29344.0,3.61021399]
[1609507370101,0.28835028,29345.0,29344.0,0.81021399]
[1609507370303,0.28835028,29345.0,29343.0,0.11101684]
[1609507373102,0.28835028,29345.0,29343.0,0.09801684]
[1609507375242,0.28835028,29345.0,29343.0,0.08801684]
[1609507375930,0.28835028,29345.0,29343.0,0.08301684]
[1609507376132,0.28835028,29345.0,29344.0,3.39]
[1609507376335,0.28835028,29345.0,29344.0,3.20021399]
[1609507377604,0.28835028,29345.0,29344.0,0.00021399]
[1609507377796,0.28835028,29345.0,29343.0,0.08301684]
[1609507378696,0.61953525,29345.0,29343.0,0.08301684]
[1609507378915,0.61953525,29345.0,29344.0,5.29021399]
[1609507379814,0.28835028,29345.0,29344.0,5.29021399]
[1609507380312,0.28835028,29345.0,29344.0,4.44021399]
[1609507380910,0.28835028,29345.0,29344.0,5.14021399]
[1609507381414,0.28835028,29345.0,29344.0,4.44021399]
[1609507381613,0.33139108,29345.0,29344.0,4.44021399]
[1609507381819,0.49708663,29357.0,29344.0,4.44021399]
[1609507382127,0.36601272,29370.0,29346.0,1.07576386]
[1609507382128,0.49700867,29365.0,29346.0,1.07576386]
[1609507382328,2.47e-06,29347.0,29346.0,1.07922]
[1609507382530,8.46e-06,29354.0,29348.0,0.4167082]
[1609507382756,0.0002,29370.0,29362.0,0.44890154]
[1609507382953,0.0002,29370.0,29366.0,0.61272048]
[1609507383148,0.0002,29370.0,29367.0,0.295]
[1609507384240,0.0002,29370.0,29367.0,0.29]
[1609507386044,0.0002,29370.0,29367.0,0.545]
[1609507386243,0.0002,29370.0,29368.0,0.31]
[1609507386442,0.0002,29370.0,29368.0,0.19346]
[1609507386843,0.00637659,29370.0,29368.0,0.19346]
[1609507387044,0.00617591,29369.0,29368.0,0.19346]
[1609507387344,0.00637465,29370.0,29368.0,0.19346]
[1609507387745,0.0002,29370.0,29368.0,0.19346]
[1609507389763,0.0002,29370.0,29367.0,0.17]
[1609507390560,0.0002,29370.0,29368.0,0.24]
[1609507390761,0.0002,29370.0,29366.0,0.51140146]
[1609507392063,0.0002,29370.0,29367.0,1.0]
[1609507394372,0.0002,29370.0,29368.0,0.365]
[1609507394572,0.0002,29370.0,29369.0,1.0]
[1609507397273,0.0002,29370.0,29369.0,1.24]
[1609507398128,0.0006,29371.0,29369.0,1.24]
[1609507398327,0.0008,29380.0,29371.0,5.1]
[1609507398530,0.0006,29378.0,29374.0,5.1]
[1609507398736,0.0002,29380.0,29376.0,0.5167082]
[1609507398931,0.0004,29383.0,29378.0,0.4167082]
[1609507399132,0.0004,29383.0,29377.0,4.69906659]
[1609507399329,0.0004,29383.0,29378.0,1.4167082]
[1609507399639,0.0002,29383.0,29380.0,5.1]
[1609507399832,0.0002,29383.0,29381.0,0.93434884]
[1609507400028,0.0002,29383.0,29382.0,6.1]
[1609507401022,0.0002,29383.0,29382.0,6.24190154]
[1609507401753,0.0002,29395.0,29382.0,6.24190154]
[1609507401953,0.0006,29483.0,29383.0,5.9481521]
[1609507401954,0.17499715,29398.0,29383.0,5.9481521]
[1609507402257,0.69685169,29395.0,29383.0,1.0]
[1609507402561,0.69685169,29395.0,29388.0,0.5097]
[1609507402562,0.60667193,29393.0,29388.0,0.5097]
[1609507402750,1.0,29392.0,29388.0,0.5097]
[1609507402955,1.22151866,29392.0,29388.0,0.5097]
[1609507403147,1.22151754,29391.0,29388.0,0.5097]
[1609507403349,0.22151754,29391.0,29388.0,0.5097]
[1609507403550,0.417075,29396.0,29388.0,0.5097]
[1609507403754,0.363242,29394.0,29388.0,0.5097]
[1609507403947,1.53180302,29393.0,29388.0,0.5097]
[1609507404151,1.33180302,29392.0,29388.0,0.5097]
[1609507404350,1.0,29391.0,29388.0,0.5097]
[1609507404553,0.175,29390.0,29388.0,0.5097]
[1609507405053,0.175,29390.0,29388.0,0.51110041]
[1609507405254,1.0,29391.0,29388.0,0.51110041]
[1609507405451,1.0,29395.0,29388.0,0.51110041]
[1609507405655,0.72851314,29394.0,29388.0,0.17641991]
[1609507405853,0.33180302,29392.0,29388.0,0.17641991]
[1609507406051,1.0,29392.0,29388.0,0.17641991]
[1609507406756,0.22152936,29391.0,29388.0,0.17641991]
[1609507407300,0.55351173,29394.0,29388.0,0.17641991]
[1609507407672,0.2183463,29390.0,29388.0,0.17641991]
[1609507408071,0.22053406,29392.0,29388.0,0.17641991]
[1609507409582,0.22069908,29394.0,29388.0,0.17641991]
[1609507409781,1.40569908,29394.0,29388.0,0.17641991]
[1609507410090,0.22070339,29391.0,29388.0,0.17641991]
[1609507410283,0.23,29390.0,29388.0,0.17641991]
[1609507410587,0.33180302,29392.0,29388.0,0.17641991]
[1609507410783,0.22067779,29393.0,29388.0,0.17641991]
[1609507410985,0.20742312,29391.0,29388.0,0.17641991]
[1609507411782,0.363242,29394.0,29388.0,0.17641991]
[1609507411982,0.33180302,29393.0,29388.0,0.17641991]
[1609507412184,0.20778777,29390.0,29388.0,0.17641991]
[1609507412823,0.53839969,29394.0,29388.0,0.17641991]
[1609507413022,0.20662239,29389.0,29388.0,0.17641991]
[1609507413326,0.73839856,29393.0,29388.0,0.17641991]
[1609507413521,0.53823346,29392.0,29388.0,0.17641991]
[1609507413722,0.20643044,29392.0,29388.0,0.17641991]
[1609507414527,0.19642531,29391.0,29388.0,0.17641991]
[1609507415322,0.52782908,29393.0,29388.0,0.17641991]
[1609507415522,1.39602606,29393.0,29388.0,0.17641991]
[1609507415728,0.52767373,29392.0,29388.0,0.17641991]
[1609507415922,1.88267373,29392.0,29388.0,0.17641991]
[1609507416127,0.00028608,29390.0,29388.0,0.17641991]
[1609507426543,0.19546168,29391.0,29390.0,0.06453892]
[1609507426739,0.19546168,29391.0,29390.0,0.02109292]
[1609507426942,0.19595122,29393.0,29390.0,0.02109292]
[1609507427142,0.363242,29392.0,29390.0,0.02109292]
[1609507427757,0.19564481,29391.0,29390.0,0.02109292]
[1609507428860,0.19557609,29392.0,29390.0,0.02109292]
[1609507429058,0.38189898,29389.0,29388.0,0.17641991]
[1609507430062,0.57747808,29389.0,29388.0,0.17641991]
[1609507434092,0.94072008,29389.0,29388.0,0.17641991]
[1609507434298,1.14072008,29389.0,29388.0,0.17641991]
[1609507435299,0.77747808,29389.0,29388.0,0.17641991]
[1609507436100,0.57747808,29389.0,29388.0,0.17641991]
[1609507437851,0.57772714,29389.0,29388.0,0.17641991]
[1609507438550,0.94096914,29389.0,29388.0,0.17641991]
[1609507438748,1.08096914,29389.0,29388.0,0.17641991]
[1609507440462,0.71772714,29389.0,29388.0,0.17641991]
[1609507441565,1.08096914,29389.0,29388.0,0.17641991]
[1609507441763,0.71772714,29389.0,29388.0,0.17641991]
[1609507442665,0.57772714,29389.0,29388.0,0.17641991]
[1609507443595,0.38214804,29389.0,29388.0,0.17641991]
[1609507444898,0.74539004,29389.0,29388.0,0.17641991]
[1609507445695,0.75238304,29389.0,29388.0,0.17641991]
[1609507445896,0.52914104,29389.0,29388.0,0.17641991]
[1609507446296,0.38914104,29389.0,29388.0,0.17641991]
[1609507447202,1.38914104,29389.0,29388.0,0.17641991]
[1609507447403,2.25238304,29389.0,29388.0,0.17641991]
[1609507447614,0.51554665,29388.0,29381.0,0.00408856]
[1609507447815,3.97576734,29382.0,29381.0,0.00408856]
[1609507448017,4.07576734,29381.0,29380.0,0.00409204]
[1609507448217,5.91923546,29381.0,29376.0,0.00409816]
[1609507448433,1.30757036,29379.0,29376.0,0.00409816]
[1609507448630,4.14103848,29377.0,29376.0,0.00409816]
[1609507448936,0.94432836,29376.0,29373.0,0.00410188]
[1609507449133,2.00851314,29375.0,29368.0,0.51]
[1609507449332,0.33180302,29373.0,29368.0,0.51]
[1609507449531,0.33180302,29371.0,29368.0,0.10242745]
[1609507449737,1.68680302,29370.0,29361.0,1.16439996]
[1609507450035,0.33180302,29368.0,29362.0,0.5101]
[1609507450232,0.135,29367.0,29362.0,0.68150529]
[1609507450623,1.30553,29369.0,29362.0,0.5101]
[1609507450922,1.10553,29369.0,29362.0,0.5101]
[1609507451331,0.30553,29369.0,29359.0,0.59258748]
[1609507451525,0.71805534,29369.0,29359.0,0.59258748]
[1609507451721,0.30553,29369.0,29359.0,0.59258748]
[1609507452125,0.71805534,29369.0,29359.0,0.59258748]
[1609507452429,0.30553,29369.0,29359.0,0.5104]
[1609507452887,0.71805534,29369.0,29359.0,0.5104]
[1609507453590,0.41252534,29368.0,29359.0,0.5104]
[1609507453785,0.305,29367.0,29359.0,0.5104]
[1609507453994,1.363242,29366.0,29359.0,0.0002]
[1609507454202,0.33180302,29364.0,29359.0,0.0002]
[1609507454400,0.33180302,29362.0,29359.0,0.0002]
[1609507454597,1.39671012,29361.0,29359.0,0.0002]
[1609507454904,5.31004502,29360.0,29359.0,0.0002]
[1609507455101,5.058242,29360.0,29359.0,0.0002]
[1609507455301,3.82576734,29358.0,29357.0,0.0004]
[1609507455500,7.30338966,29358.0,29357.0,0.0004]
[1609507455699,7.41611476,29358.0,29357.0,0.0004]
[1609507456096,8.37611476,29358.0,29357.0,0.0004]
[1609507456294,8.37611476,29358.0,29357.0,0.10138408]
[1609507457094,8.37111476,29358.0,29357.0,0.10138408]
[1609507457395,8.37111476,29358.0,29357.0,0.0004]
[1609507460718,7.95481476,29358.0,29357.0,0.0004]
[1609507460919,8.25481476,29358.0,29357.0,0.0004]
[1609507461517,9.05711778,29358.0,29357.0,0.0004]
[1609507462918,8.75711778,29358.0,29357.0,0.0004]
[1609507463847,8.23711778,29358.0,29357.0,0.0004]
[1609507464846,3.05160598,29357.0,29356.0,0.0006]
[1609507465045,4.706651,29357.0,29356.0,0.0006]
[1609507465242,5.81511912,29357.0,29356.0,0.0006]
[1609507465445,6.33511912,29357.0,29356.0,0.0006]
[1609507465842,7.33511912,29357.0,29356.0,0.0006]
[1609507466145,5.82011912,29357.0,29356.0,0.0006]
[1609507466348,6.81511912,29357.0,29356.0,0.0006]
[1609507466547,5.82011912,29357.0,29356.0,0.0006]
[1609507468233,6.81511912,29357.0,29356.0,0.0006]
[1609507468435,6.81461912,29357.0,29356.0,0.0006]
[1609507468631,5.81961912,29357.0,29356.0,0.0006]
[1609507468934,6.81461912,29357.0,29356.0,0.0006]
[1609507469348,2.736151,29357.0,29356.0,0.0006]
[1609507469651,2.656151,29357.0,29356.0,0.0006]
[1609507470947,2.32434798,29357.0,29356.0,0.0006]
[1609507471146,1.36434798,29357.0,29356.0,0.0006]
[1609507471344,1.36334798,29357.0,29356.0,0.0006]
[1609507472046,2.54192594,29357.0,29356.0,0.0006]
[1609507473979,2.21012292,29357.0,29356.0,0.0006]
[1609507474382,2.2079474,29357.0,29356.0,0.0006]
[1609507474585,2.6079474,29357.0,29356.0,0.0006]
[1609507476185,1.84677494,29357.0,29356.0,0.0006]
[1609507476786,1.84677494,29357.0,29356.0,0.9006]
[1609507476993,0.84677494,29357.0,29356.0,0.9006]
[1609507477885,0.84677494,29357.0,29356.0,2.5006]
[1609507478085,0.84677494,29357.0,29356.0,2.8906]
[1609507478390,0.84677494,29357.0,29356.0,1.2906]
[1609507478609,0.84677494,29357.0,29356.0,0.9006]
[1609507478808,0.84677494,29357.0,29356.0,1.8006]
[1609507479610,0.84677494,29357.0,29356.0,0.9006]
[1609507479806,0.84677494,29357.0,29356.0,0.1606]
[1609507480107,0.84677494,29357.0,29356.0,0.0006]
[1609507480908,0.84677494,29357.0,29356.0,1.2006]
[1609507482210,0.84677494,29357.0,29356.0,0.0006]
[1609507483847,0.85376794,29357.0,29356.0,0.0006]
[1609507484871,7.94e-06,29357.0,29356.0,5.91632]
[1609507485073,7.94e-06,29357.0,29356.0,6.91632]
[1609507485780,7.94e-06,29357.0,29356.0,7.66461779]
[1609507486172,7.94e-06,29357.0,29356.0,7.01961779]
[1609507486381,7.94e-06,29357.0,29356.0,7.65411779]
[1609507489596,7.94e-06,29357.0,29356.0,7.52309779]
[1609507490194,7.94e-06,29357.0,29356.0,6.7853]
[1609507490693,7.94e-06,29357.0,29356.0,7.7853]
[1609507491189,7.94e-06,29357.0,29356.0,7.88748319]
[1609507492393,7.94e-06,29357.0,29356.0,7.7853]
[1609507494018,7.94e-06,29357.0,29356.0,7.88621599]
[1609507494224,7.94e-06,29357.0,29356.0,7.97688599]
[1609507494423,0.00023117,29357.0,29356.0,7.97688599]
[1609507495825,0.00023117,29357.0,29356.0,7.88621599]